Cogmind - Beta 11.1 @@@ ROGUE MODE // 2022.06.02 @ 09:44:19 Player: ChromeKnight Result: Destroyed by G-47 Trooper with Particle Gun Performance ------------- Evolutions (2) 1000 Regions Visited (5) 1000 Robots Destroyed (16) 80 Value Destroyed (266) 266 Prototype IDs (23) 460 Alien Tech Used (0) 0 Bonus (342) 342 TOTAL SCORE: 3148 Bonus ------- Follower Combat Kills 159 Aligned with FarCom 300 Friendly Fire -117 Cogmind --------- Core Integrity 0/550 Matter 300/300 Energy 94/100 System Corruption 0% Temperature Cool (65) Movement Core (200) Ox3 Location -8/Materials Parts ------- > --- POWER (1) -------- (None) > --- PROPULSION (4) --- (None) > --- UTILITY (4) ------ Medium Storage Unit > --- WEAPON (2) ------- (None) > --- INVENTORY (10) --- Large Storage Unit Melee Analysis Suite Actuator Array Trap Reconfigurator PSU Rigger Mining Claw Ripper Deploy-a-Sentry Peak State ------------ > --- POWER ------------ Ion Engine > --- PROPULSION ------- Aluminum Leg Aluminum Leg > --- UTILITY ---------- Large Storage Unit Large Storage Unit > --- WEAPON ----------- Particle Gun Light Assault Rifle > --- INVENTORY -------- Aluminum Leg Medium Storage Unit Trap Reconfigurator PSU Rigger Rocket Launcher Mining Claw Ripper Deploy-a-Sentry Deploy-a-Sentry Deploy-a-Sentry [Rating: 12] Favorites ----------- Power Ion Engine Engine Ion Engine Propulsion Aluminum Leg Treads Light Treads Leg Aluminum Leg Utility Large Storage Unit Device Seismic Detector Storage Large Storage Unit Weapon Light Assault Rifle Energy Gun Particle Gun Ballistic Gun Light Assault Rifle Launcher Rocket Launcher Build | -11 -10 -10 -10 -9 -8 ------- Run | Scr Mat Min Exi Min Mat Slots Evolved 4 | . . . . . 4 Power . | . . . . . . Propulsion 2 | . . . . . 2 Utility 2 | . . . . . 2 Weapon . | . . . . . . Parts Attached 21 | 7 1 7 1 . 5 Power 2 | 1 . 1 . . . Engine 2 | 1 . 1 . . . Core . | . . . . . . Reactor . | . . . . . . Propulsion 6 | 2 . 3 . . 1 Treads 2 | 2 . . . . . Leg 4 | . . 3 . . 1 Wheel . | . . . . . . Hover . | . . . . . . Flight . | . . . . . . Utility 5 | 2 1 . 1 . 1 Device 1 | 1 . . . . . Storage 4 | 1 1 . 1 . 1 Processor . | . . . . . . Hackware . | . . . . . . Protection . | . . . . . . Artifact . | . . . . . . Weapon 8 | 2 . 3 . . 3 Energy Gun 2 | . . 1 . . 1 Energy Cannon . | . . . . . . Ballistic Gun 4 | 2 . 1 . . 1 Ballistic Cannon . | . . . . . . Launcher 2 | . . 1 . . 1 Special Weapon . | . . . . . . Impact Weapon . | . . . . . . Slashing Weapon . | . . . . . . Piercing Weapon . | . . . . . . Special Melee Weapon . | . . . . . . Unidentified Prototypes . | . . . . . . Parts Lost 14 | . . 6 . . 8 Power 2 | . . 1 . . 1 Propulsion 6 | . . 3 . . 3 Utility 1 | . . 1 . . . Weapon 5 | . . 1 . . 4 Highest Loss Streak 8 | . . 3 . . 8 To Critical Strikes . | . . . . . . Average Slot Usage (%) 81 | . 100 79 85 85 42 Engine 13 | . 14 13 14 14 6 Treads 8 | . 28 10 . . . Leg 18 | . . 16 28 28 13 Device 2 | . 14 . . . . Storage 13 | . 14 14 14 14 9 Energy Gun 7 | . . 4 14 14 7 Ballistic Gun 17 | . 28 18 14 14 6 Naked Turns . | . . . . . . Heaviest Build 29 | 14 29 29 29 29 29 Greatest Support 40 | 40 40 40 20 20 20 Greatest Overweight (x) 6 | . . 2 1 1 6 Average Overweight (x) . | . . . 1 1 1 Largest Inventory Capacity 15 | 8 15 15 15 15 15 Average Capacity 13 | 7 9 15 15 15 14 Most Carried 12 | 2 5 6 10 10 12 Average Carried 5 | 1 2 4 7 10 10 Final Capacity 15 | 8 15 15 15 15 10 Final Carried 10 | 2 4 5 10 10 8 Class Distribution -------------------- 100% | Mutant Dominant Class ---------------- Mutant | -10/Materials Mutant | -10/Mines Mutant | -10/Exiles Mutant | -9/Mines Mutant | -8/Materials Resources | -11 -10 -10 -10 -9 -8 ----------- Run | Scr Mat Min Exi Min Mat Matter Collected 615 | 342 4 219 . 13 37 Remotely . | . . . . . . Salvage Created 565 | 153 . 301 . . 111 Parts 38 | 16 . 12 . . 10 Haulers Intercepted . | . . . . . . Recyclers Shooed 1 | . . 1 . . . Parts Field Recycled . | . . . . . . Retrieved Matter . | . . . . . . Parts Self-Destructed . | . . . . . . Prevented . | . . . . . . Kills | -11 -10 -10 -10 -9 -8 ------- Run | Scr Mat Min Exi Min Mat Combat Hostiles Destroyed 20 | . . 19 . . 1 Guns 9 | . . 8 . . 1 AOE 11 | . . 11 . . . Classes Destroyed 7 | 3 . 3 . . 1 Worker 2 | 2 . . . . . Tunneler 3 | 3 . . . . . Recycler 2 | 1 . 1 . . . Operator 1 | . . . . . 1 Swarmer 3 | . . 3 . . . Grunt 5 | . . 3 . . 2 Assembled 13 | . . 13 . . . Best Kill Streak 13 | 3 . 13 . . 2 Combat Bots Only 13 | . . 13 . . 1 Max Kills in Single Turn 4 | 1 . 4 . . 1 Gunslinging . | . . . . . . Exploded 4 | . . 4 . . . Melee . | . . . . . . Uniques/NPCs Destroyed . | . . . . . . Combat | -11 -10 -10 -10 -9 -8 -------- Run | Scr Mat Min Exi Min Mat Damage Taken 2102 | . . 991 . 7 1104 Core 780 | . . 229 . . 551 Absorbed by Shields . | . . . . . . Core Remaining (%) 54 | 100 . . . 8 . Volleys Fired 88 | 18 3 53 . 3 11 Largest 2 | 2 2 2 . 2 2 Hottest 98 | 40 40 53 . 85 98 Shots Fired 135 | 36 6 71 . 6 16 Gun 129 | 36 6 66 . 6 15 Cannon . | . . . . . . Launcher 6 | . . 5 . . 1 Special . | . . . . . . Kinetic 116 | 36 6 66 . 3 5 Thermal 13 | . . . . 3 10 Explosive 6 | . . 5 . . 1 Electromagnetic . | . . . . . . Robot Hit Streak 18 | 4 1 16 . 18 6 Robot Miss Streak 4 | 2 3 4 . 2 1 Penetration Max . | . . . . . . Secondary Targets 1 | . . . . . 1 Max Gunslinging Chain 1 | . . . . . 1 Shots Hit Robots 88 | 21 2 48 . 4 13 Core Hits 58 | 9 1 43 . . 5 Critical Kills . | . . . . . . Critical Parts Destroyed . | . . . . . . Critical Strikes 1 | . . . . . 1 Burn 1 | . . . . . 1 Melee Attacks . | . . . . . . Impact . | . . . . . . Slashing . | . . . . . . Piercing . | . . . . . . Sneak Attacks . | . . . . . . Combat Hostiles . | . . . . . . Follow-up Attacks . | . . . . . . Damage Inflicted 1616 | 252 17 1066 . 47 234 Guns 926 | 252 17 413 . 47 197 Cannons . | . . . . . . Explosions 690 | . . 653 . . 37 Melee . | . . . . . . Ramming . | . . . . . . Kinetic 736 | 252 17 413 . 18 36 Thermal 190 | . . . . 29 161 Explosive 690 | . . 653 . . 37 Electromagnetic . | . . . . . . Impact . | . . . . . . Slashing . | . . . . . . Piercing . | . . . . . . Highest Corruption . | . . . . . . Average Corruption . | . . . . . . Corruption Purged . | . . . . . . Corruption Blocked . | . . . . . . Overload Shots . | . . . . . . Overflow Damage 51 | . . 16 . . 35 Projectiles . | . . . . . . Explosions 51 | . . 16 . . 35 Melee . | . . . . . . Knockbacks . | . . . . . . Impact . | . . . . . . Kinetic . | . . . . . . Secondary . | . . . . . . Self-Inflicted Damage 113 | . . 65 . . 48 Shots 3 | . . 2 . . 1 Rammed . | . . . . . . Targets Rammed . | . . . . . . Kicked . | . . . . . . Crushed . | . . . . . . Highest Temperature 115 | . . 34 . 68 115 Average Temperature 30 | . . 11 . 32 42 Received Heat Transfer 890 | . . 242 . . 648 Siege Activations . | . . . . . . Robots Corrupted . | . . . . . . Combat Hostiles . | . . . . . . Parts Fried . | . . . . . . Impact Corruptions . | . . . . . . Robots Melted . | . . . . . . Combat Hostiles . | . . . . . . Parts Melted . | . . . . . . Heat Transferred 518 | . . . . 74 444 Parts Sabotaged . | . . . . . . Parts Stolen . | . . . . . . Parts Stripped . | . . . . . . Power Chain Reactions . | . . . . . . Missiles Intercepted . | . . . . . . Alert | -11 -10 -10 -10 -9 -8 ------- Run | Scr Mat Min Exi Min Mat Peak Influence 210 | 30 64 210 . 81 120 Initial 31 | . 19 24 . . 31 Average 49 | 12 40 71 . 22 54 Maximum Alert Level 1 | . . 1 . . . Low Security (%) 95 | 100 100 89 . 100 100 Level 1 4 | . . 10 . . . Level 2 . | . . . . . . Level 3 . | . . . . . . Level 4 . | . . . . . . Level 5 . | . . . . . . High Security . | . . . . . . Max Security . | . . . . . . Squads Dispatched 2 | . . . . . 2 Investigation . | . . . . . . Extermination . | . . . . . . Reinforcement 2 | . . . . . 2 Assault . | . . . . . . Garrison . | . . . . . . Intercept . | . . . . . . Searches Triggered . | . . . . . . Construction Impeded . | . . . . . . Haulers Reinforced . | . . . . . . Active Scanning Responses . | . . . . . . Cargo Convoy Interrupts . | . . . . . . Stealth | -11 -10 -10 -10 -9 -8 --------- Run | Scr Mat Min Exi Min Mat Distress Signals 1 | . . . . . 1 Communications Jammed . | . . . . . . Distress Signals . | . . . . . . Times Spotted 45 | . 3 27 . 3 12 Peak Tracking Total 16 | . 1 16 . 3 8 Tactical Retreats 1 | . . 1 . . . Traps | -11 -10 -10 -10 -9 -8 ------- Run | Scr Mat Min Exi Min Mat Traps Triggered . | . . . . . . Indirectly . | . . . . . . Trap Hack Attempts . | . . . . . . Triggered . | . . . . . . Disarmed . | . . . . . . Reprogrammed . | . . . . . . Reused . | . . . . . . Traps Extracted . | . . . . . . Installed . | . . . . . . Triggered 1 | . . 1 . . . Machines | -11 -10 -10 -10 -9 -8 ---------- Run | Scr Mat Min Exi Min Mat Machines Disabled 1 | . . . . . 1 Max in Single Turn 1 | . . . . . 1 Machines Sabotaged . | . . . . . . Garrisons Compromised . | . . . . . . Overloaded Fab Kills . | . . . . . . Hacking | -11 -10 -10 -10 -9 -8 --------- Run | Scr Mat Min Exi Min Mat Machines Accessed 3 | . 1 . 1 . 1 Terminals 2 | . 1 . . . 1 Fabricators . | . . . . . . Repair Stations . | . . . . . . Recycling Units . | . . . . . . Scanalyzers . | . . . . . . Garrison Access . | . . . . . . Total Hacks 5 | . 2 . 1 . 2 Successful 2 | . . . 1 . 1 Failed 3 | . 2 . . . 1 Catastrophic 1 | . . . . . 1 Database Lockouts . | . . . . . . Manual 5 | . 2 . 1 . 2 Terminals 4 | . 2 . . . 2 Fabricators . | . . . . . . Repair Stations . | . . . . . . Recycling Units . | . . . . . . Scanalyzers . | . . . . . . Garrison Access . | . . . . . . Terminal Hacks 1 | . . . 1 . . EX-Prototype ID Bank 1 | . . . 1 . . Fabricator Hacks . | . . . . . . Repair Station Hacks . | . . . . . . Recycling Unit Hacks . | . . . . . . Scanalyzer . | . . . . . . Garrison Access Hacks . | . . . . . . Unauthorized Hacks 1 | . . . . . 1 Terminals 1 | . . . . . 1 Botnet 1 | . . . . . 1 Fabricators . | . . . . . . Repair Stations . | . . . . . . Recycling Units . | . . . . . . Scanalyzers . | . . . . . . Garrison Access . | . . . . . . Data Cores Recovered . | . . . . . . Used . | . . . . . . Hacking Detections 2 | . 1 . . . 1 Full Trace Events . | . . . . . . Feedback Events . | . . . . . . Feedback Blocked . | . . . . . . Robot Schematics Acquired . | . . . . . . Robots Built . | . . . . . . Authchips . | . . . . . . Time . | . . . . . . Total Robot Build Rating . | . . . . . . Part Schematics Acquired . | . . . . . . Parts Built . | . . . . . . Authchips . | . . . . . . Time . | . . . . . . Total Part Build Rating . | . . . . . . Parts Repaired . | . . . . . . Time . | . . . . . . Parts Recycled . | . . . . . . Recycled Matter . | . . . . . . Retrieved Matter . | . . . . . . Retrieved Components . | . . . . . . Parts Scanalyzed . | . . . . . . Part Schematics Acquired . | . . . . . . Parts Damaged . | . . . . . . Bothacking | -11 -10 -10 -10 -9 -8 ------------ Run | Scr Mat Min Exi Min Mat Used RIF Installer . | . . . . . . Robots Hacked . | . . . . . . Non-combat . | . . . . . . Combat . | . . . . . . Robot Hacks Applied . | . . . . . . Relay Couplers Released . | . . . . . . Fabnet Peak Effective % . | . . . . . . Robots Rewired . | . . . . . . Allies Hacked . | . . . . . . Hacks Repelled . | . . . . . . Allies | -11 -10 -10 -10 -9 -8 -------- Run | Scr Mat Min Exi Min Mat Total Allies 3 | . . . . 3 . Largest Group 3 | . . . . 3 3 Highest-Rated Group 40 | . . . . 40 40 Highest-Rated Ally 16 | . . . . 16 16 Total Orders . | . . . . . . Ally Attacks 33 | . . . . 8 25 Total Damage 770 | . . . . 116 654 Kills 7 | . . . . 3 4 Allies Corrupted . | . . . . . . Allies Melted 2 | . . . . . 2 Turrets Deployed 2 | . . . . . 2 Intel | -11 -10 -10 -10 -9 -8 ------- Run | Scr Mat Min Exi Min Mat Robot Analysis Total . | . . . . . . Derelict Logs Recovered 1 | . . . . 1 . Drone Launches . | . . . . . . Drone Recoveries . | . . . . . . Exploration | -11 -10 -10 -10 -9 -8 ------------- Run | Scr Mat Min Exi Min Mat Turns Passed 2632 | 229 352 916 511 391 233 Spaces Moved 1315 | 106 213 433 266 199 98 Core 12 | 2 . . . . 10 Treads 490 | 104 213 173 . . . Legs 813 | . . 260 266 199 88 Wheels . | . . . . . . Hover . | . . . . . . Flight . | . . . . . . Fastest Speed 50 | 50 160 160 190 190 190 Average Speed 179 | 157 160 178 190 190 196 Slowest Speed 350 | 160 160 260 190 190 350 Overloaded Moves . | . . . . . . Propulsion Burnouts . | . . . . . . Robots Hopped . | . . . . . . Cave-ins Triggered . | . . . . . . Exploration Rate (%) 42 | 6 36 87 61 51 12 Regions Visited 5 Branch Regions 3 Pre-discovered Areas 1 | . . . . 1 . Known Exits Taken . | . . . . . . Unknown Exits Taken 5 | 1 1 1 1 1 . Scrap Searched 2 | . . 1 . 1 . Spaces Dug . | . . . . . . Terrain Destroyed 55 | . . 50 . . 5 Melee . | . . . . . . Projectile . | . . . . . . AOE 55 | . . 50 . . 5 Terrain Rammed . | . . . . . . Walls Destroyed . | . . . . . . Machines Disabled . | . . . . . . Actions | -11 -10 -10 -10 -9 -8 --------- Run | Scr Mat Min Exi Min Mat Total 1468 | 132 219 514 272 207 124 Wait 28 | . . 17 . 6 5 Move 1310 | 105 212 432 265 198 98 Hop . | . . . . . . Pick Up 15 | 2 2 4 5 . 2 Fast Attach 12 | 7 . 3 1 . 1 Attach 5 | . . 2 . . 3 Detach 1 | . . . . . 1 Swap 4 | . 1 2 . . 1 Drop 5 | . 1 1 1 . 2 Fire 88 | 18 3 53 . 3 11 Melee . | . . . . . . Ram . | . . . . . . Kick . | . . . . . . Crush . | . . . . . . Escape Stasis . | . . . . . . Rewire . | . . . . . . Trap . | . . . . . . Miscellaneous . | . . . . . . Route ------- -11/Scrapyard -10/Materials (discovered 2 exits: [*Mat] / [*Min]) -10/Mines (discovered 2 exits: [*Mat] / *Exi) -10/Exiles -9/Mines -8/Materials History --------- Turn | Location | Event 29 | -11/Scrapyard | Discovered new exit (range 13) 230 | -11/Scrapyard | Entered Materials 280 | -10/Materials | Discovered new exit (range 13) 307 | -10/Materials | Build established: Mutant 475 | -10/Materials | Discovered new exit (range 13) 582 | -10/Materials | Entered Mines 764 | -10/Mines | Received a Rocket Launcher from a helpful Derelict 801 | -10/Mines | Assembled infested the area 806 | -10/Mines | Assisted by a Guerilla fighting off Assembled 848 | -10/Mines | Discovered new exit (range 13) 857 | -10/Mines | Destroyed 13 combat bots 930 | -10/Mines | Core integrity fell below 50% 958 | -10/Mines | Lost 3 parts (2n1w) 1227 | -10/Mines | Core integrity fell below 20% 1351 | -10/Mines | A weapon hastily lodged in a ceiling crevice suddenly fell to the ground 1490 | -10/Mines | Deemed a non-threat by the Exiles lab entrance 1490 | -10/Mines | Discovered new exit (range 5) 1498 | -10/Mines | Entered Exiles 1542 | -10/Exiles | Met 8R-AWN 1576 | -10/Exiles | Met EX-HEX 1630 | -10/Exiles | Met EX-BIN 1656 | -10/Exiles | Aligned with FarCom system 1658 | -10/Exiles | Given EX-Vault access code 1713 | -10/Exiles | Opened EX-Vault 1726 | -10/Exiles | Found PSU Rigger 1737 | -10/Exiles | Found Trap Reconfigurator 1740 | -10/Exiles | Found Deploy-a-Sentry 1743 | -10/Exiles | Found Deploy-a-Sentry 1746 | -10/Exiles | Found Deploy-a-Sentry 1783 | -10/Exiles | Warned to stay clear of 0b10 Research branches 1845 | -10/Exiles | Met EX-DEC 1994 | -10/Exiles | Discovered new exit (range 10) 2009 | -10/Exiles | Stole three prototypes: PSU Rigger, Trap Reconfigurator, Deploy-a-Sentry 2009 | -10/Exiles | Entered Mines 2080 | -9/Mines | Assisted by bots powering up and referring to "LRC-V3" 2176 | -9/Mines | Learned location of Storage (-7) 2299 | -9/Mines | Discovered new exit (range 15) 2400 | -9/Mines | Entered Materials 2400 | -8/Materials | Accompanied by 3 allies 2400 | -8/Materials | Evolved 4 slots: Propulsion x2, Utility x2 2577 | -8/Materials | DAS Turret deployed 2592 | -8/Materials | DAS Turret deployed 2606 | -8/Materials | Core integrity fell below 50% 2621 | -8/Materials | Core integrity fell below 20% 2633 | -8/Materials | Destroyed by G-47 Trooper with Particle Gun Last Messages --------------- 02615_ G-50 Soldier overheating. 02617_ K-01 Serf collects debris. 02618_ G-50 Soldier overheating. 02620_ Acquired Particle Gun. 02620_ K-01 Serf collects debris. 02622_ G-50 Soldier overheating. 02623_ G-50 Soldier heat damages Hvy. Laser, Broken Carbon-fiber Leg. 02623_ G-50 Soldier overheating. 02624_ K-01 Serf collects debris. 02624_ K-01 Serf destroyed. 02624_ G-50 Soldier overheating. 02625_ Acquired 10 matter. 02627_ G-50 Soldier overheating. 02629_ G-47 Trooper suffers critical hit (Burn). 02630_ G-50 Soldier heat damages Carbon-fiber Leg. 02630_ G-47 Trooper overheating. 02631_ Particle Gun destroyed. 02631_ Critical hit (Burn: +37). 02631_ G-50 Soldier overheating. 02632_ K-01 Serf collects debris. Map ----- +----------------------------------------------------+ | ????????????????????????????????????????? | | ????????????????????????????????????????? | | ????????????????????????????????????????? | | ????????????##+##???????????????????????? | | ???????????? ???????????????????????? | | ???????????? ???????????????????????? | | ???????????? " ???????????????????????? | | ???????????? "%"???????????????????????? | | ???????????? " ???????????????????????? | | ????????????# = #??????##???????????????? | | ????????????#!%!#?????? #???????????????? | | ????????????# [ #????? #???????????????? | | ????????????# +????? ????????????????? | | ????????????# [=#???? #???????????????? | | ????????????#%*%#??? #???????????????? | | ????????????# !#??? ????????????????? | | ????????????# =%#?? ?????????????????? | | ????????????# *#? ??????????????????? | | ????????????# #? ???????????????????? | | ?????????##?#% # ????????????????????? | | ??########;## # ?????????????????????? | | ??# """ ! #% % #??????????????????????? | | ### "T" %%[%#################+#####?? | | #"" gg*a* w ? | | #"T """ "" =%=g ? | | #"" """ " %%@ % k ? | | ### """ """ # = """ ###############??? | | ??# # """ #??????# #??? | | ??# # """ #??????# """ #??? | | ??########### ######## """ #??? | | ????????????# k # """ #??? | | ????????????# % ! + """ #??? | | ????????????# m # """ #??? | | ????????????# ##########+##+# #??? | | ????????????# #???????] # """ #??? | | ????????????# #??????# # """ #??? | | ????????????# #??????# #! """ #??? | | ????????????#####??????# " " # """ #??? | | ???????????????????????# "R" # """ #??? | | ???????????????????????# """ # ?????? | | ???????????????????????############?????? | | ????????????????????????????????????????? | | ????????????????????????????????????????? | | ????????????????????????????????????????? | | ????????????????????????????????????????? | | ????????????????????????????????????????? | | ????????????????????????????????????????? | | ????????????????????????????????????????? | | | | | +----------------------------------------------------+ Best States ------------- Heat Dissipation 31 Energy Generation 10 Energy Capacity 250 Matter Stores 300 Matter Capacity 300 Sight Range 16 Terrain Scan Density 10 Evasion (%) 40 Recoil Reduction 2 Item Schematics ----------------- None Robot Schematics ------------------ None Fabricated ------------ Nothing Alien Tech Used ----------------- None Achievements -------------- None Challenges ------------ None Game ------ Seed CatalystSlugFlakker Manual? 0 Play Time 00:14:00 Cumulative 299.6 hours Start 2022.06.02 @ 09:26:06 End 2022.06.02 @ 09:44:19 Sessions 1 Manual Loads 0 Difficulty Rogue Special Mode None Game No. 542 Rogue 387 Adventurer 148 Explorer 7 Win Type - Total 10 Types 8/0/1/1/0/0/0/0/0 Lore% 73 Gallery% 85 Achievement% 66 Wizard Run 0 Options --------- ASCII 0 Keyboard 0 Movement Numpad Keybinds 0 Fullscreen 1 Font 18/SmallcapsGlow Map View 76x50 Tactical HUD 1 Map Filters NONE Filters NONE Steam 1 RUN: de8157e7-cc04-4c05-8fe6-3b86e72f231e